bitfinex/quotes_SOLUSD_20250602
["timestamp","ask_amount","ask_price","bid_price","bid_amount"]
[1748888106396,0.42648471,153.79,153.71,61.19155244]
[1748888106594,0.42648471,153.79,153.71,22.77015157]
[1748888107500,6.92908761,153.79,153.71,22.77015157]
[1748888108010,0.42648471,153.79,153.71,22.77015157]
[1748888110403,0.42648471,153.79,153.72,38.42140087]
[1748888110608,38.42140087,153.77,153.72,38.42140087]
[1748888110928,38.42140087,153.77,153.73,38.42140087]
[1748888111122,38.42140087,153.76,153.72,38.42140087]
[1748888111324,23.07528322,153.76,153.71,45.84543479]
[1748888112805,23.07528322,153.76,153.71,22.77015157]
[1748888113018,23.07528322,153.76,153.71,45.84543479]
[1748888115225,0.42648471,153.79,153.72,23.07528322]
[1748888115226,23.07528322,153.77,153.72,23.07528322]
[1748888115610,10.48,153.8,153.75,23.07528322]
[1748888115842,172.4,153.83,153.79,23.07528322]
[1748888115843,146.4,153.83,153.79,23.07528322]
[1748888116052,33.81528322,153.84,153.81,23.07528322]
[1748888116053,10.74,153.84,153.81,23.07528322]
[1748888117291,157.14,153.88,153.82,38.40629581]
[1748888117492,195.54629581,153.88,153.83,38.40629581]
[1748888118057,38.40629581,153.87,153.84,6.50026001]
[1748888121877,38.40629581,153.87,153.83,61.1586848]
[1748888123075,195.54629581,153.88,153.83,87.1586848]
[1748888123277,10.74,153.88,153.85,38.40629581]
[1748888123672,10.74,153.88,153.85,6.4998375]
[1748888123875,10.74,153.88,153.85,22.74943126]
[1748888124182,10.74,153.88,153.85,61.15572707]
[1748888124566,38.40629581,153.89,153.85,61.15572707]
[1748888124881,38.40629581,153.9,153.86,38.40629581]
[1748888125083,273.56629581,153.92,153.87,38.40629581]
[1748888125283,151.04390996,153.96,153.87,38.40629581]
[1748888125459,64.5570415,153.99,153.93,38.40629581]
[1748888125661,59.91313154,153.99,153.94,70.90233322]
[1748888125883,59.91313154,153.99,153.96,38.40629581]
[1748888126185,49.7234566,153.99,153.96,38.40629581]
[1748888126358,49.7234566,153.99,153.97,38.40629581]
[1748888126762,39.0034566,153.99,153.97,38.40629581]
[1748888127471,39.0034566,153.99,153.95,44.64964886]
[1748888127678,39.0034566,153.99,153.97,38.40629581]
[1748888127894,39.0034566,153.99,153.98,6.49434991]
[1748888131077,39.0034566,153.99,153.96,44.90148936]
[1748888131280,39.0034566,153.99,153.97,38.40629581]
[1748888131503,49.12629581,154.03,153.98,64.40629581]
[1748888131696,10.72,154.03,153.99,38.40629581]
[1748888132013,38.40629581,154.04,153.99,38.40629581]
[1748888132248,12.80596089,154.05,154.0,38.40629581]
[1748888132503,51.2122567,154.05,154.01,46.46419581]
[1748888132681,51.2122567,154.05,154.01,8.0579]
[1748888133081,51.2122567,154.05,154.02,6.49266329]
[1748888133280,38.40629581,154.04,154.02,6.49266329]
[1748888133782,38.40629581,154.04,154.01,14.55084385]
[1748888133996,38.40629581,154.03,154.01,6.49294385]
[1748888134497,38.40629581,154.02,153.97,14.55264653]
[1748888134706,38.40629581,154.02,153.9,3.19824404]
[1748888134707,38.40629581,153.98,153.93,8.0579]
[1748888134876,38.40629581,153.96,153.94,2.42510618]
[1748888135075,0.14216157,154.01,153.93,48.5379]
[1748888135076,38.40629581,153.97,153.95,6.49561545]
[1748888135514,38.40629581,153.97,153.96,2.42523251]
[1748888135803,38.40629581,153.98,153.95,6.49561545]
[1748888136012,38.40629581,153.98,153.96,2.42532522]
[1748888136802,38.40629581,153.98,153.97,2.4250755]
[1748888137646,45.32713043,153.98,153.97,2.4250755]
[1748888138009,38.83278052,153.98,153.97,2.4250755]
[1748888138419,45.32713043,153.98,153.97,2.4250755]
[1748888138722,38.83278052,153.98,153.97,2.4250755]
[1748888141645,38.40629581,153.98,153.97,2.4250755]
[1748888144532,38.40629581,154.0,153.97,8.91955849]
[1748888146227,10.72,154.02,153.97,31.66198776]
[1748888146419,38.40629581,154.01,153.97,31.66198776]
[1748888146813,38.40629581,154.0,153.97,31.66198776]
[1748888148838,38.40629581,154.0,153.97,15.42505849]
[1748888149236,10.72,154.02,153.97,15.42505849]
[1748888149237,38.40629581,153.99,153.97,15.42505849]
[1748888150261,38.40629581,153.98,153.97,15.42505849]
[1748888150626,38.40629581,153.99,153.97,15.42505849]
[1748888151047,10.72,154.02,153.97,15.42505849]
[1748888151258,38.40629581,153.99,153.97,15.42505849]
[1748888151446,38.40629581,153.99,153.97,8.91955849]
[1748888151639,38.40629581,153.98,153.97,8.91955849]
[1748888153131,38.40629581,153.99,153.97,8.91955849]
[1748888155352,23.00745385,153.98,153.97,2.4250755]
[1748888155661,23.43393856,153.98,153.97,2.4250755]
[1748888156841,29.92828847,153.98,153.97,2.4250755]
[1748888159379,45.29954992,153.98,153.97,2.4250755]
[1748888162569,132.54365867,154.03,153.97,2.4250755]
[1748888162570,77.94,154.03,153.97,2.4250755]
[1748888162861,77.94,154.03,153.97,8.9198472]
[1748888162862,38.3787153,153.99,153.97,8.9198472]
[1748888163066,10.72,154.02,153.97,8.9198472]
[1748888163067,38.3787153,153.98,153.97,2.4250755]
[1748888163668,38.3787153,153.98,153.97,8.9198472]
[1748888163853,38.3787153,153.98,153.97,2.4250755]
[1748888164053,38.66303844,153.98,153.97,2.4250755]
[1748888164272,38.80520001,153.98,153.97,2.4250755]
[1748888164455,63.94919878,153.98,153.97,2.4250755]
[1748888164654,19.07613357,153.97,153.95,2.42518748]
[1748888164857,49.38303844,153.96,153.95,2.42518748]
[1748888166569,55.87823199,153.96,153.95,2.42518748]
[1748888168578,49.38303844,153.96,153.95,2.42518748]
[1748888169569,221.07004242,153.96,153.95,2.42518748]
[1748888169967,214.57484887,153.96,153.95,2.42518748]
[1748888170171,157.54648471,153.96,153.95,2.42518748]
[1748888170358,49.0987153,153.96,153.95,8.92080293]
[1748888170547,49.0987153,153.96,153.95,2.42518748]
[1748888170746,49.0987153,153.96,153.95,8.92080293]
[1748888170971,49.0987153,153.96,153.95,2.42518748]
[1748888171581,10.72,153.96,153.95,8.92080293]
[1748888171781,38.3787153,153.99,153.95,8.92080293]
[1748888171984,38.3787153,153.99,153.95,25.15984157]
[1748888172163,38.3787153,153.98,153.95,25.15984157]
[1748888172370,38.3787153,153.99,153.95,25.15984157]
[1748888172681,10.76,154.0,153.97,22.73170097]
[1748888173100,49.1387153,154.0,153.97,22.73170097]
[1748888174567,49.1387153,154.0,153.97,16.23692927]
[1748888174568,38.3787153,153.99,153.97,16.23692927]
[1748888174883,10.76,154.0,153.97,16.23692927]
[1748888174884,49.1387153,154.0,153.97,16.23692927]
[1748888175563,10.76,154.0,153.97,16.23692927]
[1748888175756,10.76,154.0,153.97,54.61564457]
[1748888176567,10.76,154.0,153.97,61.11041627]
[1748888176764,10.76,154.0,153.97,101.61041627]
[1748888177471,49.1387153,154.0,153.97,63.23170097]
[1748888178267,49.1387153,154.0,153.97,46.9947717]
[1748888178268,38.3787153,153.99,153.97,46.9947717]
[1748888178577,49.1387153,154.0,153.97,46.9947717]
[1748888178963,49.1387153,154.0,153.97,63.23170097]
[1748888181377,49.1387153,154.0,153.97,46.9947717]
[1748888182375,49.1387153,154.0,153.97,63.23170097]
[1748888182679,10.76,154.0,153.97,63.23170097]
[1748888182874,38.3787153,154.03,153.99,38.3787153]
[1748888183077,49.1387153,154.04,154.01,8.056]
[1748888183399,10.76,154.04,154.01,46.4347153]
[1748888184196,10.76,154.04,154.01,8.056]
[1748888184871,10.76,154.04,154.02,6.49266329]
[1748888185072,49.1387153,154.04,154.02,6.49266329]
[1748888185293,10.76,154.04,154.02,6.49266329]
[1748888186566,10.76,154.04,154.01,6.49291007]
[1748888186567,38.3787153,154.03,154.01,6.49291007]
[1748888186768,38.3787153,154.02,154.0,6.49350649]
[1748888187599,38.3787153,154.01,153.98,6.49434991]
[1748888187901,38.3787153,153.99,153.98,6.49434991]
[1748888193394,0.28432314,154.03,153.98,6.49434991]
[1748888193594,38.3787153,153.99,153.98,6.49434991]
[1748888193997,0.28432314,154.03,153.98,6.49434991]
[1748888194179,38.3787153,153.99,153.98,6.49434991]
[1748888195704,38.3787153,154.0,153.98,6.49434991]
[1748888196104,0.42648471,154.03,153.98,22.73022469]
[1748888196285,38.3787153,153.99,153.98,6.49434991]
[1748888197304,38.3787153,153.99,153.96,6.49519355]
[1748888197504,38.3787153,153.98,153.96,6.49519355]
[1748888198287,10.68,154.0,153.95,2.42518748]
[1748888198288,38.3787153,153.97,153.95,2.42518748]
[1748888198503,38.3787153,153.96,153.95,2.42518748]
[1748888198708,10.68,154.0,153.95,8.92078635]
[1748888198906,38.3787153,153.97,153.95,8.92078635]
[1748888199287,23.01465618,153.96,153.95,8.92078635]
[1748888201807,23.44114089,153.96,153.95,2.42518748]
[1748888202513,23.01465618,153.96,153.95,8.92080293]
[1748888202887,23.01465618,153.96,153.95,2.42518748]
[1748888203193,29.93633444,153.96,153.95,2.42518748]
[1748888203398,23.44114089,153.96,153.95,2.42518748]
[1748888203585,29.93633444,153.96,153.95,2.42518748]
[1748888204403,19.07613357,153.95,153.89,8.2006]
[1748888204588,19.07613357,153.95,153.85,24.50387511]
[1748888204589,23.01465618,153.9,153.85,24.50387511]
[1748888204812,0.14216157,153.91,153.86,6.49941505]
[1748888205007,23.01465618,153.87,153.86,6.49941505]
[1748888205699,23.01465618,153.88,153.86,6.49941505]
[1748888206011,23.15681775,153.92,153.86,22.74795268]
[1748888206012,23.01465618,153.9,153.86,22.74795268]
[1748888206220,23.01465618,153.9,153.86,45.76260886]
[1748888207301,38.38959439,153.9,153.86,22.74795268]
[1748888207499,38.38959439,153.9,153.86,61.13754707]
[1748888207699,0.42648471,153.93,153.86,61.13754707]
[1748888207906,38.38959439,153.91,153.87,38.38959439]
[1748888209105,38.38959439,153.9,153.86,61.13754707]
[1748888209797,38.38959439,153.9,153.86,22.74795268]
[1748888210190,38.38959439,153.9,153.86,61.13754707]
[1748888210917,38.38959439,153.9,153.86,22.74795268]
[1748888211216,38.38959439,153.89,153.86,22.74795268]
[1748888211402,0.42648471,153.92,153.87,40.42]
[1748888211403,38.38959439,153.88,153.87,40.42]
[1748888211713,38.38959439,153.89,153.87,40.42]
[1748888212019,38.38959439,153.89,153.88,6.49857031]
[1748888213418,38.38959439,153.89,153.86,63.14795268]
[1748888216294,10.68,153.94,153.87,40.38]
[1748888216295,38.38959439,153.9,153.87,40.38]
[1748888216516,38.38959439,153.91,153.87,40.38]
[1748888216714,38.38959439,153.91,153.87,78.76959439]
[1748888217101,38.38959439,153.91,153.87,40.38]
[1748888217346,38.38959439,153.96,153.91,7.6792]
[1748888217611,38.38959439,153.95,153.92,63.11908523]
[1748888220194,38.38959439,153.96,153.92,63.11908523]
[1748888220405,38.38959439,153.98,153.94,38.38959439]
[1748888220594,38.38959439,153.98,153.95,40.38]
[1748888220794,10.68,153.99,153.95,78.76959439]
[1748888220795,38.38959439,153.99,153.95,78.76959439]
[1748888221025,38.38959439,154.0,153.95,78.76959439]
[1748888221419,38.38959439,154.0,153.97,22.73170097]
[1748888221920,38.38959439,154.01,153.98,40.38]
[1748888222124,39.23145236,154.05,154.0,38.38959439]
[1748888222303,39.23145236,154.05,154.01,40.38]
[1748888222623,39.23145236,154.05,154.02,38.38959439]
[1748888222922,38.38959439,154.07,154.02,38.38959439]
[1748888223517,38.38959439,154.07,154.03,6.49224177]
[1748888223821,38.38959439,154.06,154.04,40.4]
[1748888224127,38.38959439,154.07,154.04,40.4]
[1748888224329,7.98425812,154.1,154.04,78.78959439]
[1748888224330,38.38959439,154.08,154.04,78.78959439]
[1748888224622,38.38959439,154.09,154.04,78.78959439]
[1748888225005,38.38959439,154.08,154.04,78.78959439]
[1748888225516,38.38959439,154.06,154.05,6.49139889]
[1748888225826,38.38959439,154.07,154.05,6.49139889]
[1748888227003,38.38959439,154.07,154.05,40.38]
[1748888227523,38.38959439,154.08,154.04,6.4918203]
[1748888227724,38.38959439,154.08,154.05,40.36]
[1748888228598,7.98425812,154.1,154.05,40.36]
[1748888228917,38.38959439,154.08,154.05,40.36]
[1748888229111,38.38959439,154.08,154.06,6.49097754]
[1748888229328,7.98425812,154.1,154.06,6.49097754]
[1748888229329,38.38959439,154.07,154.06,6.49097754]
[1748888230105,38.38959439,154.08,154.06,6.49097754]
[1748888230320,38.38959439,154.09,154.06,6.49097754]
[1748888231313,38.38959439,154.08,154.05,6.49139889]
[1748888232835,38.38959439,154.07,154.05,6.49139889]
[1748888234729,38.38959439,154.06,154.05,6.49139889]
[1748888235312,38.38959439,154.06,154.02,6.49266329]
[1748888235628,38.38959439,154.05,154.02,46.89266329]
[1748888236134,38.38959439,154.03,154.02,6.49266329]
[1748888236325,38.38959439,154.05,154.02,6.49266329]
[1748888236520,38.38959439,154.05,154.02,22.72432151]
[1748888237308,0.42648471,154.09,154.02,22.72432151]
[1748888237507,22.98852478,154.04,154.02,6.49266329]
[1748888237704,22.98852478,154.05,154.02,6.49266329]
[1748888240437,22.98852478,154.07,154.02,86.07284629]
[1748888240619,22.98852478,154.08,154.03,22.98852478]
[1748888241126,22.98852478,154.08,154.04,6.4918203]
[1748888241330,7.98425812,154.1,154.04,6.4918203]
[1748888241331,22.98852478,154.07,154.04,6.4918203]
[1748888241523,22.98852478,154.06,154.04,6.4918203]
[1748888241712,22.98852478,154.05,154.04,6.4918203]
[1748888242830,22.98852478,154.05,154.03,6.49224177]
[1748888243036,22.98852478,154.04,154.01,6.49308486]
[1748888243223,22.98852478,154.04,154.01,46.85308486]
[1748888243923,22.98852478,154.05,154.01,46.85308486]
[1748888244125,22.98852478,154.05,154.01,63.08579702]
[1748888244526,22.98852478,154.05,154.01,86.0743218]
[1748888244728,22.98852478,154.06,154.01,86.0743218]
[1748888246426,22.98852478,154.06,154.02,22.98852478]
[1748888246741,22.98852478,154.07,154.02,22.98852478]
[1748888247148,22.98852478,154.07,154.03,22.72284619]
[1748888247334,7.98425812,154.1,154.04,22.98852478]
[1748888247527,9.6185152,154.11,154.07,22.98852478]
[1748888247846,22.98852478,154.11,154.07,22.98852478]
[1748888248043,22.98852478,154.11,154.06,22.98852478]
[1748888249057,22.98852478,154.11,154.07,22.71694684]
[1748888249550,22.98852478,154.11,154.07,45.70547162]
[1748888249751,22.98852478,154.09,154.07,6.49055624]
[1748888250851,22.98852478,154.1,154.07,6.49055624]
[1748888251247,22.98852478,154.09,154.06,46.85097754]
[1748888251436,22.98852478,154.08,154.06,6.49097754]
[1748888252228,22.98852478,154.09,154.06,22.71842139]
[1748888253529,10.64,154.15,154.06,22.71842139]
[1748888253747,10.64,154.15,154.06,45.70694617]
[1748888254045,0.42648471,154.14,154.07,22.98852478]
[1748888254249,22.98852478,154.1,154.06,22.71842139]
[1748888254453,22.98852478,154.09,154.06,22.71842139]
[1748888254656,22.98852478,154.1,154.06,45.70694617]
[1748888255932,22.98852478,154.1,154.06,63.05842139]
[1748888256149,22.98852478,154.09,154.06,63.05842139]
[1748888257547,22.98852478,154.09,154.06,22.71842139]
[1748888258748,22.98852478,154.1,154.06,22.71842139]
[1748888260960,22.98852478,154.07,154.05,6.4912134]
[1748888261136,0.28432314,154.12,154.05,6.4912134]
[1748888261137,22.98852478,154.06,154.05,6.4912134]
[1748888261558,22.98852478,154.07,154.05,6.4912134]
[1748888261741,22.98852478,154.08,154.05,6.4912134]
[1748888262245,22.98852478,154.08,154.05,22.71971064]
[1748888263553,22.98852478,154.07,154.05,6.4912134]
[1748888263758,17.12888571,154.11,154.04,6.49170869]
[1748888263759,22.98852478,154.06,154.04,6.49170869]
[1748888263960,22.98852478,154.06,153.97,6.4947717]
[1748888263961,10.64,154.06,153.97,6.4947717]
[1748888264165,22.98852478,154.01,153.98,40.42]
[1748888264738,22.98852478,154.01,153.97,29.48329648]
[1748888264739,22.98852478,154.01,153.97,6.4947717]
[1748888264956,22.98852478,154.0,153.98,22.73022372]
[1748888265552,22.98852478,153.99,153.98,6.49434991]
[1748888266662,22.98852478,153.99,153.97,6.4947717]
[1748888266832,22.98852478,153.98,153.97,6.4947717]
[1748888268961,0.42648471,154.02,153.97,6.4947717]
[1748888269137,22.98852478,153.98,153.97,6.4947717]
[1748888269534,22.98852478,153.98,153.93,6.49645942]
[1748888269765,22.98852478,153.94,153.93,6.49645942]
[1748888272263,22.98852478,153.94,153.88,6.2291]
[1748888272460,0.28432314,153.96,153.89,6.49814802]
[1748888272461,22.98852478,153.91,153.89,6.49814802]
[1748888272633,22.98852478,153.91,153.88,32.2291]
[1748888272634,22.98852478,153.9,153.88,6.49843683]
[1748888272834,22.98852478,153.92,153.87,1.6475]
[1748888272835,22.98852478,153.89,153.87,8.14635293]
[1748888273079,22.98852478,153.88,153.85,6.4998375]
[1748888273385,22.98852478,153.86,153.85,6.4998375]
[1748888275355,38.41289311,153.86,153.85,6.4998375]
[1748888275976,0.14216157,153.89,153.84,6.50026001]
[1748888276149,38.41289311,153.85,153.84,6.50026001]
[1748888278146,38.41289311,153.85,153.83,6.50068257]
[1748888278347,38.41289311,153.87,153.83,22.75238899]
[1748888278667,10.66,153.9,153.83,22.75238899]
[1748888278668,38.41289311,153.86,153.83,22.75238899]
[1748888278978,38.41289311,153.85,153.83,22.75238899]
[1748888279191,38.41289311,153.86,153.83,22.75238899]
[1748888279759,38.41289311,153.85,153.83,22.75238899]
[1748888280581,38.41289311,153.86,153.83,22.75238899]
[1748888280750,38.41289311,153.84,153.83,63.33238899]
[1748888281145,38.41289311,153.84,153.83,6.50068257]
[1748888281376,19.07613357,153.89,153.83,6.50068257]
[1748888281880,19.07613357,153.89,153.82,6.5009747]
[1748888282083,38.41289311,153.83,153.79,1.5981]
[1748888282437,38.41289311,153.8,153.77,6.50321909]
[1748888282546,38.41289311,153.78,153.77,6.50321909]
[1748888283847,38.41289311,153.78,153.75,6.50406504]
[1748888284075,38.41289311,153.76,153.75,6.50406504]
[1748888286755,10.66,153.8,153.75,6.50406504]
[1748888286953,38.41289311,153.77,153.75,22.76422764]
[1748888287458,38.41289311,153.76,153.75,6.50406504]
[1748888287854,38.41289311,153.77,153.75,6.50406504]
[1748888288981,38.41289311,153.76,153.75,6.50406504]
[1748888289160,10.66,153.8,153.75,6.50406504]
[1748888289348,38.41289311,153.76,153.75,6.50406504]
[1748888289851,38.41289311,153.77,153.75,6.50406504]
[1748888290300,10.66,153.8,153.75,22.76422764]
[1748888290500,38.41289311,153.79,153.75,61.17712075]
[1748888290870,38.41289311,153.78,153.75,22.76422764]
[1748888292607,38.41289311,153.76,153.75,6.50406504]
[1748888293270,38.41289311,153.77,153.75,6.50406504]
[1748888293466,38.41289311,153.78,153.75,6.50406504]
[1748888293689,38.41289311,153.78,153.75,22.76422764]
[1748888293875,38.41289311,153.77,153.75,22.76422764]
[1748888294766,38.41289311,153.77,153.75,16.2601626]
[1748888295009,38.41289311,153.78,153.75,16.2601626]
[1748888295211,38.41289311,153.79,153.75,54.67305571]
[1748888295372,23.06497643,153.79,153.75,39.32513903]
[1748888295705,10.66,153.8,153.76,40.8]
[1748888295873,23.06497643,153.79,153.76,40.8]
[1748888296400,10.66,153.8,153.76,40.8]
[1748888296581,23.06497643,153.82,153.77,43.21562529]
[1748888296901,23.06497643,153.82,153.78,22.7597867]
[1748888297615,23.06497643,153.81,153.78,22.7597867]
[1748888297996,23.06497643,153.82,153.78,22.7597867]
[1748888298205,23.06497643,153.83,153.79,23.06497643]
[1748888298389,23.06497643,153.82,153.78,28.9798867]
[1748888299092,23.06497643,153.82,153.78,52.04486313]
[1748888299325,23.06497643,153.83,153.78,52.04486313]
[1748888299482,23.06497643,153.86,153.82,23.06497643]
[1748888299688,23.06497643,153.92,153.83,23.06497643]
[1748888299689,23.06497643,153.87,153.83,23.06497643]
[1748888299891,23.06497643,153.86,153.82,63.84497643]
[1748888300143,23.06497643,153.85,153.82,40.78]
[1748888300915,23.06497643,153.85,153.83,6.50068257]
[1748888302287,23.06497643,153.86,153.83,22.75238899]
[1748888302502,23.06497643,153.87,153.83,45.81736542]
[1748888302702,23.06497643,153.88,153.83,45.81736542]
[1748888303688,23.06497643,153.87,153.83,45.81736542]
[1748888304130,23.06497643,153.88,153.83,45.81736542]
[1748888304793,33.96497643,153.9,153.85,48.17742529]
[1748888305019,33.96497643,153.9,153.86,23.06497643]
[1748888305223,33.96497643,153.9,153.85,48.17742529]
[1748888305531,33.96497643,153.9,153.86,6.49941505]
[1748888305532,10.9,153.9,153.86,6.49941505]
[1748888305720,23.06497643,153.87,153.86,6.49941505]
[1748888306841,33.96497643,153.9,153.86,22.74795268]
[1748888307448,23.06497643,153.88,153.86,22.74795268]
[1748888307650,23.06497643,153.88,153.86,16.24853763]
[1748888307850,23.06497643,153.89,153.86,16.24853763]
[1748888308353,23.06497643,153.88,153.86,16.24853763]
[1748888309539,23.06497643,153.88,153.85,6.4998375]
[1748888309739,23.06497643,153.87,153.85,6.4998375]
[1748888311248,10.9,153.9,153.85,22.74943126]
[1748888311249,23.06497643,153.88,153.85,22.74943126]
[1748888312969,23.06497643,153.88,153.85,6.4998375]
[1748888313145,10.9,153.9,153.85,6.4998375]
[1748888313146,23.06497643,153.86,153.85,6.4998375]
[1748888313653,23.06497643,153.86,153.83,22.75238899]
[1748888314439,23.06497643,153.85,153.83,6.50068257]
[1748888317051,11.32648471,153.9,153.83,6.50068257]
[1748888317052,23.06497643,153.87,153.83,22.75238899]
[1748888317251,23.06497643,153.88,153.83,45.81736542]
[1748888318073,23.06497643,153.87,153.83,45.81736542]
[1748888318269,23.06497643,153.87,153.83,22.75238899]
[1748888318445,23.06497643,153.86,153.83,22.75238899]
[1748888319171,23.06497643,153.87,153.83,22.75238899]
[1748888319361,23.06497643,153.89,153.85,23.06497643]
[1748888319546,10.9,153.9,153.85,63.66497643]
[1748888319748,33.96497643,153.9,153.85,63.66497643]
[1748888320356,10.9,153.9,153.87,23.06497643]
[1748888320672,10.78,153.94,153.88,41.71462529]
[1748888320973,23.06497643,153.92,153.88,41.71462529]
[1748888321772,23.06497643,153.91,153.87,29.18157643]
[1748888321968,23.06497643,153.9,153.87,6.1166]
[1748888322476,23.06497643,153.9,153.88,6.49857031]
[1748888322676,23.06497643,153.92,153.88,22.74499609]
[1748888323447,23.06497643,153.92,153.88,45.80997252]
[1748888325672,33.84497643,153.94,153.9,23.06497643]
[1748888326471,23.06497643,153.96,153.92,23.06497643]
[1748888326686,78.0,153.97,153.92,23.06497643]
[1748888326862,10.78,153.98,153.93,24.61737643]
[1748888326863,33.84497643,153.98,153.93,24.61737643]
[1748888327773,33.84497643,153.98,153.94,6.49603741]
[1748888328090,23.06497643,153.97,153.94,6.49603741]
[1748888328473,23.06497643,153.96,153.94,6.49603741]
[1748888329083,23.06497643,153.97,153.94,6.49603741]
[1748888330082,10.78,153.98,153.94,6.49603741]
[1748888330590,23.06497643,153.97,153.94,6.49603741]
[1748888330767,33.84497643,153.98,153.94,29.56101384]
[1748888331188,23.06497643,153.97,153.94,6.49603741]
[1748888331490,10.78,153.98,153.93,48.54874485]
[1748888331491,23.06497643,153.96,153.93,48.54874485]
[1748888331679,10.78,153.98,153.93,6.49634485]
[1748888331680,23.06497643,153.95,153.93,6.49634485]
[1748888331880,23.06497643,153.94,153.92,6.49682174]
[1748888333887,23.06497643,153.94,153.91,6.49730361]
[1748888334890,23.06497643,153.92,153.88,6.49857031]
[1748888335089,23.06497643,153.91,153.88,6.49857031]
[1748888336067,23.06497643,153.92,153.88,45.80997252]
[1748888337092,0.42648471,153.96,153.88,45.80997252]
[1748888337385,23.06497643,153.95,153.9,23.06497643]
[1748888337766,23.06497643,153.93,153.88,95.79857031]
[1748888337961,23.06497643,153.89,153.88,95.79857031]
[1748888338183,23.06497643,153.89,153.88,6.49857031]
[1748888338790,23.06497643,153.89,153.87,6.1166]
[1748888338977,23.06497643,153.88,153.86,6.49924342]
[1748888339366,23.06497643,153.87,153.85,6.49970573]
[1748888340297,23.06497643,153.87,153.84,6.50026001]
[1748888340587,23.06497643,153.86,153.84,6.50026001]
[1748888341089,23.06497643,153.85,153.82,6.50110518]
[1748888341300,23.06497643,153.84,153.82,6.50110518]
[1748888341983,23.06497643,153.86,153.83,18.64964886]
[1748888342187,23.06497643,153.86,153.84,6.50026001]
[1748888343606,23.06497643,153.86,153.83,22.75238899]
[1748888343767,10.78,153.88,153.83,45.81736542]
[1748888344083,33.84497643,153.88,153.84,41.71462529]
[1748888344284,23.06497643,153.89,153.85,23.06497643]
[1748888344485,23.06497643,153.89,153.85,29.51647643]
[1748888344999,77.96,153.95,153.88,43.32132529]
[1748888345171,23.06497643,153.94,153.89,23.06497643]
[1748888345691,23.06497643,153.93,153.9,6.49772579]
[1748888345993,77.96,153.95,153.9,6.49772579]
[1748888345994,77.96,153.95,153.9,5.49771349]
[1748888346170,23.06497643,153.93,153.9,5.49771349]
[1748888346372,23.06497643,153.96,153.91,41.71462529]
[1748888346572,44.3541986,154.03,153.95,41.71462529]
[1748888346783,44.3541986,154.03,153.97,24.67167643]
[1748888346784,39.14749486,154.03,153.97,24.67167643]
[1748888347094,39.14749486,154.03,153.99,49.06497643]
[1748888347672,39.14749486,154.03,154.0,6.49350649]
[1748888348981,62.21247129,154.03,154.0,6.49350649]
[1748888349178,23.06497643,154.01,153.98,6.49393488]
[1748888349701,39.14749486,154.03,153.98,6.49393488]
[1748888349702,38.33343268,154.02,153.98,25.14358374]
[1748888349903,77.48092754,154.03,153.98,63.47701642]
[1748888350204,38.33343268,154.01,153.98,6.49393488]
[1748888351202,38.33343268,154.02,153.98,6.49393488]
[1748888352097,38.33343268,154.01,153.98,6.49393488]
[1748888352304,39.14749486,154.03,153.97,42.1467]
[1748888352305,38.33343268,154.0,153.97,8.10132831]
[1748888352797,38.33343268,154.01,153.97,46.43476099]
[1748888354107,38.33343268,154.01,153.97,8.10132831]
[1748888354279,38.33343268,154.01,153.97,62.67169026]
[1748888355103,10.78,154.04,153.97,24.33825758]
[1748888355284,10.78,154.04,153.97,62.67169026]
[1748888355285,38.33343268,154.01,153.97,62.67169026]
[1748888355681,38.33343268,154.01,153.97,24.33825758]
[1748888356477,38.33343268,153.99,153.97,6.49462831]
[1748888356774,6.49229223,154.03,153.94,60.88877132]
[1748888356775,38.33343268,153.98,153.94,6.49600805]
[1748888356978,38.33343268,154.0,153.94,6.49600805]
[1748888356979,10.74,153.99,153.94,6.49600805]
[1748888357189,38.33343268,153.95,153.91,56.74230383]
[1748888357532,38.33343268,153.92,153.9,6.49772579]
[1748888359805,6.92097122,153.98,153.9,6.49772579]
[1748888359984,38.33343268,153.94,153.9,22.74204027]
[1748888360586,38.33343268,153.93,153.9,22.74204027]
[1748888360782,6.92114306,153.98,153.9,6.49772579]
[1748888360783,38.33343268,153.92,153.9,6.49772579]
[1748888361995,38.33343268,153.93,153.9,6.49772579]
[1748888362717,38.33343268,153.92,153.9,6.49772579]
[1748888362912,38.33343268,153.91,153.89,6.49808718]
[1748888363214,38.33343268,153.9,153.89,6.49808718]
[1748888363887,38.33343268,153.9,153.87,6.49899265]
[1748888364090,38.33343268,153.88,153.87,6.49899265]
[1748888364527,38.33343268,153.88,153.86,6.49931152]
[1748888364813,38.33343268,153.87,153.86,6.49931152]
[1748888365046,38.33343268,153.88,153.86,6.49931152]
[1748888365513,38.33343268,153.87,153.86,6.49931152]
[1748888365725,38.33343268,153.88,153.86,6.49931152]
[1748888366104,38.33343268,153.88,153.85,22.74871483]
[1748888367719,38.33343268,153.87,153.85,22.74871483]
[1748888368601,38.33343268,153.88,153.85,22.74871483]